[Event "3rd Rio Open-Rapid 2024"]
[Site "Rio de Janeiro"]
[Date "2024.04.24"]
[Round "7.3"]
[White "Ribeiro, Matheus Mendes Domin"]
[Black "Librelato, Kathie Goulart"]
[Result "1-0"]
[ECO "E71"]
[WhiteElo "2228"]
[BlackElo "2165"]
[Annotator "TA"]
[PlyCount "43"]
[EventDate "2024.04.12"]
[EventType "swiss"]
[EventCountry "BRA"]
[SourceTitle "playchess.com"]
[Source "ChessBase"]
[SourceQuality "1"]
[TimeControl "600+5"]

{[%evp 11,43,27,46,13,16,-6,11,6,18,-17,25,6,26,-26,61,58,116,100,198,208,197,159,345,117,102,96,292,112,29996,29997,29997,29998,29998,29999]} 1. c4 {[%emt 0:00:01]} Nf6 {[%emt 0:00:01]} 2. Nc3 {[%emt 0:00:01]} g6 {[%emt 0:00:01]} 3. e4 {[%emt 0:00:05]} d6 {[%emt 0:00:01]} 4. d4 {[%emt 0:00:13]} Bg7 {[%emt 0:00:01]} 5. h3 {[%emt 0:00:01]} O-O {[%emt 0:00:03]} 6. Be3 {[%emt 0:00:01]} c6 {[%emt 0:00:12]} 7. g4 {[%emt 0:00:04]} a6 {[%emt 0:00:07]} 8. a4 {[%emt 0:00:11]} a5 {[%emt 0:00:06]} 9. Nge2 {[%emt 0:00:08] The position is equal.} Na6 {[%emt 0:00:09]} 10. Ng3 {[%emt 0:00:02]} Nb4 {[%emt 0:00:03]} 11. Qd2 {[%emt 0:01:15]} Nd7 {[%emt 0:00:47]} 12. f3 {[%emt 0:00:13]} (12. O-O-O $142) 12... Re8 {[%emt 0:00:34]} (12... e5 $11 13. d5 Nc5 14. Bxc5 dxc5) 13. h4 $14 {[%emt 0:00:14]} Nf8 {[%emt 0:00:58]} (13... b6 $14) 14. h5 $16 {[%emt 0:00:24]} Ne6 {[%emt 0:00:01]} (14... Qc7 $16 {was necessary.}) 15. hxg6 $18 {[%emt 0:01:09]} fxg6 {[%emt 0:00:03][%cal Oe6d4]} 16. Qh2 {[%emt 0:01:09]} c5 $2 {[%emt 0:02:07]} (16... Nf8 $16 17. O-O-O Bd7) 17. Qxh7+ $2 {[%emt 0:00:28]} (17. Nf5 $18 {has better winning chances.} gxf5 18. Qxh7+ (18. gxf5 Nf8 $18) 18... Kf7 19. Qh5+ (19. exf5 Rh8 $18) (19. Qxf5+ Kg8 $18) 19... Kg8 20. Qh7+ (20. Qxf5 $2 Nf8 $19) (20. gxf5 Nc2+ 21. Kf2 Nxe3 $18) 20... Kf7 21. exf5 (21. Qxf5+ Kg8 $14)) 17... Kf7 $16 {[%emt 0:00:01][%cal Bg8f7,Bf7f6,Bf6g5][%mdl 32] [#]} 18. Nf5 $1 {[%emt 0:01:41][%cal Bg3f5,Bf5h6,Bh6f7][%mdl 32] Nh6+ would kill now. White is more active.} Nc2+ $2 {[%emt 0:03:11]} (18... Rh8 $16 19. Nh6+ Kf8 20. Qxg6 Qe8 (20... Nc2+ $2 21. Kd2 $18) 21. Qf5+ Bf6) 19. Kf2 $2 {[%emt 0:00:28]} (19. Kd2 $18 {Intending Nh6+ and mate.} Rh8 20. Nh6+ (20. Kxc2 $2 {loses.} Rxh7 21. Rxh7 gxf5 $19) 20... Kf8 21. Qxg6) 19... Nxe3 $4 {[%emt 0:00:05][%mdl 8192]} (19... Rh8 $16 20. Nh6+ Kf8 21. Qxg6 Qe8 22. Qf5+ Bf6) 20. Nh6+ {[%emt 0:01:00] White mates.} (20. Nxe3 $2 {is the wrong capture.} Rh8 $19 (20... cxd4 $2 21. Nf5 $19) (20... cxd4 $2 21. Nf5 $19)) 20... Kf6 {[%emt 0:00:03]} 21. e5+ {[%emt 0:00:07]} Kg5 {[%emt 0:00:20]} 22. Nf7+ {[%emt 0:00:00] Weighted Error Value: White=0.48/Black=0.93.  Loses game:     	---       	Black=3      Missed win:     	White=2     	---        Mistake:       	White=1     	Black=3      Inaccurate:     	White=1     	Black=1      OK:         	White=3     	Black=2      Best:        	White=2     	Black=1      Strong:       	White=1     	---} 1-0

[Event "3rd Rio Open-Rapid 2024"]
[Site "Rio de Janeiro"]
[Date "2024.04.24"]
[Round "7.5"]
[White "Mattos, Bernardo Cunha"]
[Black "Lima, Juarez Antonio A de "]
[Result "1-0"]
[ECO "A53"]
[WhiteElo "1710"]
[BlackElo "1894"]
[Annotator "NA RC"]
[PlyCount "95"]
[EventDate "2024.04.12"]
[EventType "swiss"]
[EventCountry "BRA"]
[SourceTitle "playchess.com"]
[Source "ChessBase"]
[SourceQuality "1"]
[TimeControl "600+5"]

1. c4 {[%emt 0:00:03]} e5 {[%emt 0:00:01]} 2. Nc3 {[%emt 0:00:01]} Nf6 {[%emt 0:00:01]} 3. Nf3 {[%emt 0:00:02]} d6 {[%emt 0:00:01]} 4. d4 {[%emt 0:00:01]} Nc6 {[%emt 0:00:04]} 5. dxe5 {[%emt 0:00:24]} dxe5 {[%emt 0:00:02]} 6. Qxd8+ {[%emt 0:00:03]} Kxd8 {[%emt 0:00:02]} 7. Bg5 {[%emt 0:00:10]} Be7 {[%emt 0:00:02]} 8. O-O-O+ {[%emt 0:00:43]} Bd7 {[%emt 0:00:09]} 9. Nd5 {[%emt 0:00:22]} Nxd5 {[%emt 0:00:04]} 10. cxd5 {[%emt 0:00:02]} Nb4 {[%emt 0:00:33]} 11. a3 {[%emt 0:00:15]} Na6 {[%emt 0:00:04]} 12. Bxe7+ {[%emt 0:00:05]} Kxe7 {[%emt 0:00:02]} 13. Nxe5 {[%emt 0:00:01]} Bf5 {[%emt 0:00:05]} 14. f3 {[%emt 0:00:06]} f6 {[%emt 0:00:05]} 15. Nc4 {[%emt 0:00:05]} Rad8 {[%emt 0:00:07]} 16. e4 {[%emt 0:00:02]} Bg6 {[%emt 0:00:05]} 17. Na5 {[%emt 0:00:19]} Nc5 {[%emt 0:01:06]} 18. b4 {[%emt 0:00:10]} Nd7 {[%emt 0:00:09]} 19. Nxb7 {[%emt 0:00:27]} Rb8 {[%emt 0:00:04]} 20. Na5 {[%emt 0:00:02]} Ra8 {[%emt 0:00:20]} 21. Bb5 {[%emt 0:00:06]} Ne5 {[%emt 0:00:09]} 22. Nc6+ {[%emt 0:00:05]} Nxc6 {[%emt 0:00:01]} 23. Bxc6 {[%emt 0:00:02]} Rab8 {[%emt 0:00:01]} 24. Kb2 {[%emt 0:00:04]} a5 {[%emt 0:00:15]} 25. Kb3 {[%emt 0:00:04]} axb4 {[%emt 0:00:01]} 26. axb4 {[%emt 0:00:02]} Kd6 {[%emt 0:00:01]} 27. Ra1 {[%emt 0:00:13]} Rb6 {[%emt 0:00:01]} 28. Ra7 {[%emt 0:00:11]} Rhb8 {[%emt 0:00:10]} 29. b5 {[%emt 0:00:04]} Be8 {[%emt 0:00:11]} 30. Bxe8 {[%emt 0:08:21]} Rxe8 31. Ka4 {[%emt 0:00:00]} f5 {[%emt 0:00:07]} 32. Re1 {[%emt 0:00:00]} Re7 {[%emt 0:00:20]} 33. Kb4 {[%emt 0:00:00]} Re8 {[%emt 0:00:33]} 34. Kc4 {[%emt 0:00:00]} Reb8 {[%emt 0:00:06]} 35. e5+ {[%emt 0:00:25]} Kd7 36. Rb1 {[%emt 0:00:00]} Re8 {[%emt 0:00:16]} 37. f4 {[%emt 0:00:00]} g5 {[%emt 0:00:01]} 38. g3 {[%emt 0:00:00]} gxf4 {[%emt 0:00:01]} 39. gxf4 {[%emt 0:00:00]} Rg8 {[%emt 0:00:01]} 40. d6 {[%emt 0:00:00]} Rg4 {[%emt 0:00:15]} 41. Rxc7+ {[%emt 0:00:00]} Kd8 {[%emt 0:00:01]} 42. Kc5 {[%emt 0:00:00]} Rb8 {[%emt 0:00:01]} 43. e6 {[%emt 0:00:00]} Rg2 {[%emt 0:00:12]} 44. Rc1 {[%emt 0:00:00]} Rb2 {[%emt 0:00:09]} 45. Kc6 {[%emt 0:00:00]} R2xb5 {[%emt 0:00:21]} 46. e7+ {[%emt 0:00:00]} Ke8 {[%emt 0:00:01]} 47. d7+ {[%emt 0:00:00]} Kxe7 {[%emt 0:00:02]} 48. d8=Q+ {[%emt 0:00:00]} 1-0